bitfinex/quotes_SOLUSD_20250422
["timestamp","ask_amount","ask_price","bid_price","bid_amount"]
[1745362371520,22.4971455,148.12,148.07,32.57409024]
[1745362371841,6.7487017,148.18,148.08,22.4971455]
[1745362372022,22.4971455,148.13,148.08,22.4971455]
[1745362372345,22.4971455,148.13,148.07,10.07694474]
[1745362372511,22.4971455,148.12,148.07,32.57409024]
[1745362372832,22.4971455,148.13,148.08,22.4971455]
[1745362373134,22.4971455,148.13,148.07,32.57409024]
[1745362373339,22.4971455,148.12,148.07,32.57409024]
[1745362373518,22.4971455,148.13,148.08,22.4971455]
[1745362373719,22.4971455,148.15,148.09,22.4971455]
[1745362374035,22.4971455,148.14,148.09,22.4971455]
[1745362374737,22.4971455,148.13,148.1,18.46]
[1745362375314,55.24524225,148.19,148.1,18.46]
[1745362375722,22.4971455,148.14,148.1,18.46]
[1745362376516,22.4971455,148.13,148.1,18.46]
[1745362377042,22.4971455,148.14,148.1,18.46]
[1745362377756,22.4971455,148.13,148.11,2.47470384]
[1745362378235,22.4971455,148.13,148.1,18.46]
[1745362378546,22.4971455,148.14,148.1,18.46]
[1745362379144,22.4971455,148.13,148.1,18.46]
[1745362379521,22.4971455,148.14,148.1,18.46]
[1745362379950,22.4971455,148.14,148.11,2.47909185]
[1745362380454,22.4971455,148.13,148.11,2.47909185]
[1745362380627,22.4971455,148.14,148.11,2.47909185]
[1745362380960,22.4971455,148.14,148.1,18.46]
[1745362381556,22.4971455,148.13,148.1,18.46]
[1745362381956,22.4971455,148.13,148.11,2.48171553]
[1745362382121,22.4971455,148.12,148.11,2.48171553]
[1745362382735,22.4971455,148.13,148.11,2.48171553]
[1745362382952,22.4971455,148.14,148.11,2.48171553]
[1745362383336,22.4971455,148.13,148.11,2.48171553]
[1745362383646,22.4971455,148.13,148.12,2.48171553]
[1745362384128,48.4971455,148.19,148.12,2.48171553]
[1745362384326,22.4971455,148.14,148.12,2.48171553]
[1745362384523,22.4971455,148.13,148.11,2.48171553]
[1745362384829,22.4971455,148.12,148.11,2.48171553]
[1745362385028,22.4971455,148.13,148.11,2.48171553]
[1745362385228,22.4971455,148.12,148.11,2.48171553]
[1745362385728,44.994291,148.12,148.11,2.48171553]
[1745362386633,44.994291,148.12,148.06,2.48171553]
[1745362386847,22.4971455,148.1,148.06,2.48171553]
[1745362387038,22.4971455,148.11,148.06,24.97886103]
[1745362387441,22.4971455,148.11,148.07,2.48171553]
[1745362387850,22.4971455,148.19,148.07,24.97886103]
[1745362388040,22.4971455,148.12,148.07,24.97886103]
[1745362388243,22.4971455,148.12,148.08,2.48171553]
[1745362388447,0.03,148.22,148.14,26.0]
[1745362388674,0.03,148.22,148.2,22.4971455]
[1745362388867,1.041723,148.24,148.21,59.52679436]
[1745362389156,1.041723,148.24,148.23,41.14679436]
[1745362389960,1.041723,148.24,148.23,43.62850989]
[1745362390158,22.4971455,148.29,148.24,22.4971455]
[1745362390334,22.4971455,148.3,148.25,22.4971455]
[1745362390834,22.4971455,148.3,148.26,2.48171553]
[1745362391041,22.4971455,148.3,148.27,18.38]
[1745362391242,22.4971455,148.31,148.27,18.38]
[1745362391443,22.4971455,148.31,148.28,2.48171553]
[1745362391636,22.4971455,148.3,148.28,2.48171553]
[1745362392232,22.4971455,148.3,148.27,18.38]
[1745362392734,26.0,148.37,148.27,18.38]
[1745362392953,22.4971455,148.31,148.27,18.38]
[1745362393937,22.4971455,148.32,148.27,18.38]
[1745362394649,22.4971455,148.31,148.27,18.38]
[1745362395444,22.4971455,148.3,148.27,18.38]
[1745362399138,22.4971455,148.28,148.27,18.38]
[1745362399556,22.4971455,148.28,148.22,18.38]
[1745362399744,22.4971455,148.23,148.22,18.38]
[1745362401060,22.4971455,148.23,148.17,46.04186117]
[1745362401365,22.4971455,148.26,148.17,46.04186117]
[1745362401366,22.4971455,148.19,148.17,46.04186117]
[1745362401665,22.4971455,148.21,148.17,46.04186117]
[1745362401867,22.4971455,148.22,148.17,46.04186117]
[1745362402373,22.4971455,148.21,148.17,46.04186117]
[1745362403255,22.4971455,148.2,148.17,46.04186117]
[1745362403463,22.4971455,148.19,148.17,46.04186117]
[1745362403940,22.4971455,148.2,148.17,46.04186117]
[1745362405068,22.4971455,148.19,148.17,46.04186117]
[1745362405464,22.4971455,148.2,148.17,46.04186117]
[1745362407371,22.4971455,148.18,148.17,46.04186117]
[1745362407564,6.74613925,148.24,148.17,46.04186117]
[1745362407771,22.4971455,148.21,148.17,46.04186117]
[1745362408074,22.4971455,148.26,148.17,68.53900667]
[1745362408263,22.4971455,148.22,148.17,68.53900667]
[1745362408462,22.4971455,148.21,148.17,68.53900667]
[1745362408779,22.4971455,148.21,148.17,46.04186117]
[1745362409370,22.4971455,148.21,148.18,2.46755048]
[1745362409550,22.4971455,148.22,148.18,2.46755048]
[1745362409893,22.4971455,148.2,148.18,2.46755048]
[1745362410179,22.4971455,148.19,148.18,2.46755048]
[1745362410480,22.4971455,148.19,148.17,46.04186117]
[1745362410676,8.1198,148.3,148.18,22.4971455]
[1745362410859,8.1198,148.3,148.17,72.04186117]
[1745362410860,8.1198,148.3,148.2,22.4971455]
[1745362411190,22.4971455,148.25,148.2,22.4971455]
[1745362411356,22.4971455,148.27,148.22,22.4971455]
[1745362411560,22.4971455,148.33,148.24,22.4971455]
[1745362411770,22.4971455,148.3,148.25,22.4971455]
[1745362412470,0.03,148.36,148.25,22.4971455]
[1745362412471,0.03,148.36,148.29,48.4971455]
[1745362412672,0.03,148.36,148.32,22.4971455]
[1745362412846,0.03,148.36,148.3,18.38]
[1745362412847,0.03,148.36,148.31,22.4971455]
[1745362413464,22.5271455,148.36,148.31,22.4971455]
[1745362415972,10.46805782,148.47,148.41,1.0]
[1745362416227,10.46805782,148.47,148.46,26.0]
[1745362416407,10.46805782,148.47,148.46,48.4971455]
[1745362416703,10.46805782,148.47,148.46,50.93619238]
[1745362417282,10.46805782,148.47,148.46,20.73904688]
[1745362417458,10.46805782,148.47,148.46,53.7268713]
[1745362417665,10.46805782,148.47,148.46,51.28782442]
[1745362417864,32.98782442,148.51,148.46,51.28782442]
[1745362418173,1.041723,148.53,148.47,32.98782442]
[1745362418383,32.98782442,148.52,148.47,32.98782442]
[1745362418969,34.02954742,148.53,148.48,32.98782442]
[1745362419454,1.041723,148.53,148.48,32.98782442]
[1745362419652,34.02954742,148.53,148.48,32.98782442]
[1745362419854,32.98782442,148.52,148.46,18.3]
[1745362420057,32.98782442,148.52,148.47,32.98782442]
[1745362420274,32.98782442,148.51,148.46,18.3]
[1745362420979,32.98782442,148.5,148.46,18.3]
[1745362421682,1.041723,148.53,148.46,18.3]
[1745362421683,32.98782442,148.51,148.46,18.3]
[1745362422383,32.98782442,148.51,148.46,51.28782442]
[1745362422968,32.98782442,148.48,148.46,18.3]
[1745362423165,32.98782442,148.48,148.43,51.26782442]
[1745362423363,32.98782442,148.49,148.44,32.98782442]
[1745362423863,32.98782442,148.5,148.44,32.98782442]
[1745362424259,32.98782442,148.48,148.39,85.42124787]
[1745362424459,32.98782442,148.47,148.42,26.0]
[1745362424673,32.98782442,148.47,148.42,58.98782442]
[1745362425080,32.98782442,148.49,148.44,32.98782442]
[1745362425392,32.98782442,148.47,148.42,26.0]
[1745362425570,32.98782442,148.46,148.42,26.0]
[1745362426286,32.98782442,148.47,148.42,58.98782442]
[1745362426495,32.98782442,148.48,148.43,32.98782442]
[1745362427001,32.98782442,148.45,148.38,5.45746723]
[1745362427173,18.64964886,148.51,148.33,82.0]
[1745362427174,32.98782442,148.39,148.33,82.0]
[1745362427370,58.98782442,148.47,148.32,21.6736653]
[1745362427583,6.73358418,148.51,148.4,32.98782442]
[1745362427888,32.98782442,148.45,148.4,32.98782442]
[1745362428088,32.98782442,148.43,148.38,51.26782442]
[1745362428768,32.98782442,148.42,148.38,18.28]
[1745362428969,32.98782442,148.4,148.38,18.28]
[1745362429187,32.98782442,148.39,148.33,18.28]
[1745362429409,32.98782442,148.38,148.33,32.98782442]
[1745362429882,32.98782442,148.4,148.35,32.98782442]
[1745362430500,32.98782442,148.37,148.33,32.98782442]
[1745362430664,32.98782442,148.35,148.32,18.28]
[1745362430974,32.98782442,148.34,148.32,18.28]
[1745362431773,32.98782442,148.33,148.32,18.28]
[1745362431968,42.8434618,148.43,148.32,18.28]
[1745362431969,6.73199839,148.55,148.4,18.64964886]
[1745362432191,32.98782442,148.49,148.44,26.0]
[1745362432383,32.98782442,148.54,148.44,26.0]
[1745362432384,32.98782442,148.5,148.45,32.98782442]
[1745362432979,5.51151075,148.56,148.46,32.98782442]
[1745362433175,32.98782442,148.52,148.47,51.26782442]
[1745362433599,6.73006128,148.59,148.47,51.26782442]
[1745362433779,34.05954742,148.53,148.47,51.26782442]
[1745362434289,34.05954742,148.53,148.48,32.98782442]
[1745362434670,34.05954742,148.53,148.47,51.26782442]
[1745362434870,32.98782442,148.52,148.47,51.26782442]
[1745362435277,32.98782442,148.5,148.47,18.28]
[1745362435483,32.98782442,148.51,148.47,18.28]
[1745362435705,32.98782442,148.52,148.47,18.28]
[1745362436403,32.98782442,148.51,148.47,18.28]
[1745362437387,22.32098868,148.51,148.47,18.28]
[1745362437588,22.32098868,148.52,148.47,18.28]
[1745362437787,1.071723,148.53,148.47,40.60098868]
[1745362437993,22.32098868,148.52,148.47,40.60098868]
[1745362439079,23.39271168,148.53,148.48,22.32098868]
[1745362440204,22.32098868,148.52,148.47,18.28]
[1745362440502,1.071723,148.53,148.47,18.28]
[1745362440503,22.32098868,148.5,148.47,18.28]
[1745362440705,22.32098868,148.49,148.47,18.28]
[1745362440913,23.39271168,148.53,148.47,18.28]
[1745362441221,22.32098868,148.52,148.47,40.60098868]
[1745362441871,23.39271168,148.53,148.48,22.32098868]
[1745362442077,22.32098868,148.49,148.47,18.28]
[1745362442891,1.071723,148.53,148.47,18.28]
[1745362443119,22.32098868,148.5,148.47,18.28]
[1745362443694,22.32098868,148.51,148.47,18.28]
[1745362445595,22.32098868,148.52,148.47,18.28]
[1745362445802,22.32098868,148.5,148.47,18.28]
[1745362446713,1.071723,148.53,148.47,18.28]
[1745362446892,22.32098868,148.52,148.47,18.28]
[1745362447098,23.39271168,148.53,148.47,40.60098868]
[1745362448291,1.071723,148.53,148.52,22.32098868]
[1745362448514,1.071723,148.53,148.5,22.32098868]
[1745362449201,1.071723,148.53,148.51,22.32098868]
[1745362449686,1.071723,148.53,148.5,22.32098868]
[1745362450122,1.071723,148.53,148.49,22.32098868]
[1745362450487,1.071723,148.53,148.5,22.32098868]
[1745362450914,22.32098868,148.51,148.46,22.32098868]
[1745362451116,22.32098868,148.5,148.47,18.22]
[1745362451283,7.80441466,148.53,148.47,18.22]
[1745362451284,22.32098868,148.51,148.47,18.22]
[1745362451488,1.071723,148.53,148.47,18.22]
[1745362451489,23.39271168,148.53,148.47,18.22]
[1745362451705,23.39271168,148.53,148.47,40.54098868]
[1745362452298,22.32098868,148.52,148.47,18.22]
[1745362452619,23.39271168,148.53,148.47,40.54098868]
[1745362455726,22.32098868,148.52,148.47,40.54098868]
[1745362457529,23.39271168,148.53,148.47,40.54098868]
[1745362458336,23.39271168,148.53,148.48,2.45300193]
[1745362458708,23.39271168,148.53,148.49,2.45300193]
[1745362459210,22.32098868,148.51,148.49,2.45300193]
[1745362459519,22.32098868,148.5,148.48,2.45300193]
[1745362460404,22.32098868,148.51,148.48,2.45300193]
[1745362460609,22.32098868,148.49,148.48,2.45300193]
[1745362460929,22.32098868,148.49,148.45,18.22]
[1745362461130,22.32098868,148.46,148.45,18.22]
[1745362461639,22.32098868,148.47,148.45,18.22]
[1745362462737,22.32098868,148.47,148.42,22.32098868]
[1745362463032,22.32098868,148.47,148.43,18.22]
[1745362464634,22.32098868,148.46,148.43,18.22]
[1745362464833,22.32098868,148.47,148.43,18.22]
[1745362467144,22.32098868,148.44,148.38,230.86]
[1745362467446,22.32098868,148.46,148.41,48.32098868]
[1745362467644,22.32098868,148.46,148.41,26.0]
[1745362467854,22.32098868,148.46,148.41,48.32098868]
[1745362468207,22.32098868,148.45,148.41,26.0]
[1745362468817,22.32098868,148.42,148.41,26.0]
[1745362469014,29.05647418,148.47,148.41,26.0]
[1745362469216,18.64964886,148.41,148.3,0.063]
[1745362469416,22.32098868,148.31,148.3,0.063]
[1745362469625,48.32098868,148.4,148.3,0.063]
[1745362469626,22.32098868,148.32,148.3,0.063]
[1745362469917,22.32098868,148.38,148.31,32.70779532]
[1745362470120,7.669,148.42,148.35,22.32098868]
[1745362470321,22.22858868,148.42,148.37,22.32098868]
[1745362470536,22.22858868,148.42,148.35,18.22]
[1745362470726,22.32098868,148.38,148.3,0.063]
[1745362470929,22.32098868,148.35,148.3,40.60398868]
[1745362471950,22.32098868,148.34,148.3,18.283]
[1745362473034,22.32098868,148.33,148.3,18.283]
[1745362473228,22.32098868,148.34,148.3,18.283]
[1745362473826,22.32098868,148.33,148.3,18.283]
[1745362474751,22.32098868,148.32,148.3,18.283]
[1745362474936,22.32098868,148.31,148.3,18.283]
[1745362475726,6.0861,148.35,148.3,0.063]
[1745362475948,22.32098868,148.31,148.3,0.063]
[1745362478928,22.32098868,148.33,148.3,0.063]
[1745362479341,22.32098868,148.35,148.3,22.38398868]
[1745362479651,5.52329136,148.47,148.38,26.0]
[1745362479832,22.32098868,148.47,148.39,18.18]
[1745362480037,22.32098868,148.43,148.39,18.18]
[1745362482849,22.32098868,148.44,148.39,18.18]
[1745362483531,22.32098868,148.44,148.39,40.50098868]
[1745362483732,22.32098868,148.45,148.39,40.50098868]
[1745362484630,0.03,148.49,148.44,22.32098868]
[1745362484846,0.03,148.49,148.47,48.32098868]
[1745362485044,0.03,148.49,148.48,58.70779532]
[1745362486238,0.03,148.49,148.48,26.0]
[1745362487032,0.03,148.49,148.48,51.71631041]
[1745362487240,0.03,148.49,148.48,127.92386591]
[1745362488468,0.03,148.49,148.48,137.35079938]
[1745362488629,0.03,148.49,148.48,127.92386591]
[1745362488833,0.03,148.49,148.48,142.73873041]
[1745362489146,0.03,148.49,148.48,133.31179694]
[1745362489735,0.03,148.49,148.48,215.31179694]
[1745362490249,0.03,148.49,148.48,224.73873041]
[1745362490458,1.071723,148.53,148.48,224.73873041]
[1745362490640,1.071723,148.53,148.52,48.32098868]
[1745362490835,1.071723,148.53,148.52,66.50098868]
[1745362491248,1.071723,148.53,148.52,44.18]
[1745362491435,1.071723,148.53,148.52,66.50098868]
[1745362491759,1.071723,148.53,148.52,18.18]
[1745362492564,7.8881,148.64,148.55,26.0]
[1745362492751,22.32098868,148.62,148.57,48.32098868]
[1745362492940,22.32098868,148.62,148.58,18.18]
[1745362493755,22.32098868,148.6,148.58,18.18]
[1745362494842,22.32098868,148.59,148.58,18.18]
[1745362496656,22.32098868,148.6,148.58,18.18]
[1745362497951,22.32098868,148.61,148.58,18.18]
[1745362498855,22.32098868,148.63,148.58,40.50098868]
[1745362500751,0.03,148.65,148.58,40.50098868]
[1745362500961,22.32098868,148.63,148.58,40.50098868]
[1745362501152,22.32098868,148.64,148.59,22.32098868]
[1745362501366,0.03,148.65,148.61,22.32098868]
[1745362501669,0.03,148.65,148.64,107.65063754]
[1745362501874,0.03,148.65,148.64,141.68937101]
[1745362502058,22.32098868,148.71,148.66,22.32098868]
[1745362502253,16.80149458,148.8,148.69,22.32098868]
[1745362502254,7.8934,148.8,148.69,22.32098868]
[1745362502471,22.32098868,148.75,148.7,40.48098868]
[1745362502673,22.32098868,148.74,148.7,18.16]
[1745362503269,22.32098868,148.75,148.7,40.48098868]
[1745362503458,6.72088177,148.79,148.7,18.16]
[1745362503768,6.72088177,148.79,148.69,22.32098868]
[1745362503769,22.32098868,148.71,148.69,18.16]
[1745362503979,22.32098868,148.7,148.69,18.16]
[1745362504675,22.32098868,148.71,148.69,18.16]
[1745362504865,22.32098868,148.7,148.69,18.16]
[1745362505269,44.64197736,148.7,148.64,18.16]
[1745362505578,22.32098868,148.65,148.64,18.16]
[1745362505779,6.2604,148.71,148.64,18.16]
[1745362506084,22.32098868,148.69,148.64,40.48098868]
[1745362506259,22.32098868,148.69,148.64,18.16]
[1745362506464,22.32098868,148.69,148.64,40.48098868]
[1745362506971,22.32098868,148.7,148.65,22.32098868]
[1745362507380,6.72088177,148.79,148.69,22.32098868]
[1745362507562,22.32098868,148.77,148.71,22.32098868]
[1745362508068,22.32098868,148.76,148.71,22.32098868]
[1745362508263,22.32098868,148.76,148.7,18.16]
[1745362508587,22.32098868,148.72,148.7,18.16]
[1745362508758,22.32098868,148.73,148.7,18.16]
[1745362509081,22.32098868,148.74,148.7,18.16]
[1745362509659,22.32098868,148.73,148.7,18.16]
[1745362509875,7.8934,148.8,148.7,18.16]
[1745362509876,22.32098868,148.72,148.7,18.16]
[1745362510058,22.32098868,148.71,148.7,18.16]
[1745362510664,22.32098868,148.71,148.65,136.77278868]
[1745362510980,22.32098868,148.71,148.66,18.1]
[1745362511584,22.32098868,148.71,148.66,40.42098868]
[1745362512084,22.32098868,148.71,148.67,22.32098868]
[1745362512269,22.32098868,148.72,148.67,22.32098868]
[1745362513283,0.03,148.81,148.78,26.0]
[1745362513471,0.03,148.81,148.79,18.1]
[1745362514080,22.35098868,148.81,148.79,18.1]
[1745362514285,22.32098868,148.8,148.79,18.1]
[1745362514467,0.03,148.81,148.79,18.1]
[1745362516182,0.03,148.81,148.8,22.32098868]
[1745362516394,0.03,148.81,148.79,18.1]
[1745362516968,22.35098868,148.81,148.79,18.1]
[1745362517189,0.03,148.81,148.79,18.1]
[1745362518264,0.03,148.81,148.79,40.42098868]
[1745362518464,0.03,148.81,148.8,22.32098868]
[1745362518665,0.03,148.81,148.8,32.61197087]
[1745362518977,0.03,148.81,148.8,22.32098868]
[1745362519289,0.03,148.81,148.8,81.65063754]
[1745362519491,0.03,148.81,148.8,59.32964886]
[1745362519681,6.5186,149.0,148.85,66.68]
[1745362519890,22.32098868,148.97,148.92,22.32098868]
[1745362520074,22.32098868,148.98,148.93,18.08]
[1745362521091,22.32098868,148.98,148.93,40.40098868]
[1745362521265,6.7087079,149.06,148.91,10.29098219]
[1745362521465,6.7087079,149.06,148.87,6.4335]
[1745362521466,23.48047765,149.06,148.95,32.76525385]
[1745362521665,32.76525385,149.02,148.95,32.76525385]
[1745362521990,32.76525385,148.97,148.91,32.76525385]
[1745362522201,32.76525385,149.01,148.95,32.76525385]
[1745362522481,23.48047765,149.06,148.97,32.76525385]
[1745362522482,32.76525385,149.03,148.97,32.76525385]
[1745362522688,32.76525385,149.03,148.98,18.08]
[1745362522890,32.76525385,149.01,148.98,18.08]
[1745362523090,32.76525385,149.0,148.98,18.08]
[1745362523269,32.76525385,148.99,148.98,18.08]
[1745362523468,32.76525385,149.0,148.98,18.08]
[1745362523785,6.709158,149.05,148.98,18.08]
[1745362523982,32.76525385,149.02,148.98,18.08]
[1745362524179,32.76525385,149.01,148.98,18.08]
[1745362524379,32.76525385,148.99,148.93,18.08]
[1745362524589,32.76525385,148.99,148.93,50.84525385]
[1745362524787,16.7700396,149.08,148.96,32.76525385]
[1745362525087,32.76525385,149.0,148.93,18.08]
[1745362525292,32.76525385,149.03,148.97,32.76525385]
[1745362525683,6.70735797,149.09,148.98,32.76525385]
[1745362525888,6.70735797,149.09,149.0,32.76525385]
[1745362526070,32.76525385,149.05,148.99,18.08]
[1745362526265,32.76525385,149.05,148.99,50.84525385]
[1745362526673,6.70684945,149.11,149.01,32.76525385]
[1745362527107,32.76525385,149.09,149.03,32.76525385]
[1745362527389,32.76525385,149.11,149.05,32.76525385]
[1745362527690,1.041723,149.12,149.01,26.0]
[1745362527691,32.76525385,149.1,149.06,18.08]
[1745362528097,32.76525385,149.11,149.06,18.08]
[1745362528293,1.041723,149.12,149.07,32.76525385]
[1745362529000,1.041723,149.12,149.09,32.76525385]
[1745362529195,1.041723,149.12,149.09,40.29]
[1745362529400,1.041723,149.12,149.11,73.05525385]
[1745362529700,1.041723,149.12,149.11,321.84490271]
[1745362530073,1.041723,149.12,149.11,329.19525385]
[1745362530297,1.041723,149.12,149.11,347.84490271]
[1745362530608,32.76525385,149.25,149.15,40.29]
[1745362530793,32.76525385,149.24,149.19,32.76525385]
[1745362531177,32.76525385,149.2,149.16,18.06]
[1745362531383,32.76525385,149.17,149.12,50.82525385]
[1745362531783,32.76525385,149.17,149.12,18.06]
[1745362532193,32.76525385,149.18,149.12,50.82525385]
[1745362532499,32.76525385,149.18,149.13,32.76525385]
[1745362532800,32.76525385,149.14,149.06,230.14]
[1745362532999,32.76525385,149.17,149.07,18.06]
[1745362533203,69.73115442,149.2,149.08,32.76525385]
[1745362533204,25.08150556,149.2,149.08,32.76525385]
[1745362533386,32.76525385,149.16,149.07,58.35]
[1745362533594,32.76525385,149.16,149.1,32.76525385]
[1745362533908,32.76525385,149.14,149.09,32.76525385]
[1745362534202,32.76525385,149.11,149.07,18.06]
[1745362534390,32.76525385,149.12,149.07,18.06]
[1745362534590,32.76525385,149.17,149.07,18.06]
[1745362534792,32.76525385,149.1,149.07,18.06]
[1745362534980,1.623,149.2,149.09,32.76525385]
[1745362535183,32.76525385,149.15,149.1,32.76525385]
[1745362535381,1.623,149.2,149.09,32.76525385]
[1745362535382,32.76525385,149.14,149.09,32.76525385]
[1745362535907,32.76525385,149.14,149.08,58.76525385]
[1745362536083,32.76525385,149.13,149.08,58.76525385]
[1745362536408,32.76525385,149.11,149.09,18.06]
[1745362536703,32.76525385,149.1,149.09,18.06]
[1745362536897,6.2605,149.18,149.09,50.82525385]
[1745362537209,32.76525385,149.17,149.12,32.76525385]
[1745362537416,32.76525385,149.18,149.13,32.76525385]
[1745362537589,1.623,149.27,149.17,32.76525385]
[1745362537790,32.76525385,149.24,149.19,32.76525385]
[1745362537991,32.76525385,149.23,149.18,50.82525385]
[1745362538197,32.76525385,149.22,149.18,18.06]
[1745362538487,1.623,149.27,149.18,50.82525385]
[1745362538693,1.623,149.27,149.19,32.76525385]
[1745362538902,32.76525385,149.25,149.2,32.76525385]
[1745362539121,32.76525385,149.31,149.21,32.76525385]
[1745362539122,32.76525385,149.26,149.21,32.76525385]
[1745362539291,32.76525385,149.28,149.23,32.76525385]
[1745362539494,1.0,149.39,149.25,32.76525385]
[1745362539697,6.6948791,149.37,149.26,32.76525385]
[1745362539915,32.76525385,149.29,149.24,18.0]
[1745362540307,32.76525385,149.32,149.24,18.0]
[1745362540513,32.76525385,149.38,149.27,32.76525385]
[1745362540702,8.31650992,149.4,149.24,44.0]
[1745362540926,7.3646723,149.41,149.36,32.76525385]
[1745362540927,0.1041723,149.41,149.36,32.76525385]
[1745362541112,0.1041723,149.41,149.37,247.94]
[1745362541303,0.1041723,149.41,149.36,32.76525385]
[1745362541507,0.1041723,149.41,149.39,32.76525385]
[1745362542019,0.1041723,149.41,149.4,229.84]
[1745362542191,0.1041723,149.41,149.4,18.0]
[1745362542394,0.1041723,149.41,149.35,262.60525385]
[1745362542610,32.76525385,149.36,149.27,18.64964886]
[1745362542797,32.76525385,149.35,149.3,229.84]
[1745362542999,32.76525385,149.38,149.28,32.76525385]
[1745362543000,32.76525385,149.34,149.28,32.76525385]
[1745362543190,32.76525385,149.29,149.2,40.29]
[1745362543389,32.76525385,149.26,149.21,50.76525385]
[1745362543829,32.76525385,149.31,149.22,32.76525385]
[1745362543830,32.76525385,149.27,149.22,32.76525385]
[1745362544016,32.76525385,149.28,149.22,32.76525385]
[1745362544320,32.76525385,149.28,149.23,32.76525385]
[1745362544692,32.76525385,149.28,149.22,32.76525385]
[1745362545010,32.76525385,149.26,149.21,50.76525385]
[1745362545208,32.76525385,149.31,149.22,18.0]
[1745362545415,32.76525385,149.23,149.17,18.0]
[1745362545596,18.64964886,149.3,149.19,32.76525385]
[1745362545597,32.76525385,149.25,149.19,32.76525385]
[1745362545802,32.76525385,149.31,149.17,18.0]
[1745362545803,32.76525385,149.26,149.2,32.76525385]
[1745362546004,32.76525385,149.27,149.21,32.76525385]
[1745362546313,32.76525385,149.25,149.18,40.29]
[1745362546618,32.76525385,149.2,149.15,18.0]
[1745362546821,32.76525385,149.2,149.14,32.76525385]
[1745362547196,32.76525385,149.2,149.15,32.76525385]
[1745362547400,32.76525385,149.22,149.16,32.76525385]
[1745362547812,32.76525385,149.2,149.14,58.29]
[1745362548014,32.76525385,149.16,149.1,32.76525385]
[1745362548232,32.76525385,149.16,149.1,73.05525385]
[1745362548435,32.76525385,149.17,149.11,32.76525385]
[1745362549237,32.76525385,149.15,149.09,32.76525385]
[1745362549724,32.76525385,149.15,149.07,18.0]
[1745362549938,32.76525385,149.16,149.1,32.76525385]
[1745362550239,32.76525385,149.32,149.23,66.29]
[1745362550395,32.76525385,149.32,149.25,32.76525385]
[1745362550598,0.03,149.37,149.24,50.76525385]
[1745362550599,32.76525385,149.3,149.24,50.76525385]
[1745362550794,32.76525385,149.27,149.19,229.78]
[1745362551009,32.76525385,149.26,149.16,18.64964886]
[1745362551231,32.76525385,149.31,149.2,32.76525385]
[1745362551522,32.76525385,149.27,149.21,32.76525385]
[1745362551838,32.76525385,149.27,149.17,91.05525385]
[1745362551839,32.76525385,149.26,149.19,32.76525385]
[1745362552031,32.76525385,149.25,149.18,32.76525385]
[1745362552235,32.76525385,149.29,149.23,32.76525385]
[1745362552536,32.76525385,149.3,149.24,32.76525385]
[1745362552722,32.79525385,149.28,149.22,32.76525385]
[1745362553018,32.76525385,149.25,149.19,32.76525385]
[1745362553599,32.76525385,149.26,149.2,32.76525385]
[1745362553908,32.79525385,149.28,149.22,32.76525385]
[1745362554299,0.03,149.28,149.24,32.76525385]
[1745362555220,32.79525385,149.28,149.22,32.76525385]
[1745362555421,32.76525385,149.25,149.17,18.0]
[1745362555609,32.76525385,149.25,149.19,32.76525385]
[1745362556042,0.03,149.28,149.24,32.76525385]
[1745362556333,0.03,149.28,149.27,32.76525385]
[1745362556501,0.03,149.28,149.25,32.76525385]
[1745362557201,32.79525385,149.28,149.22,50.76525385]
[1745362557401,32.76525385,149.26,149.16,229.78]
[1745362557602,32.76525385,149.26,149.17,18.0]
[1745362557808,32.76525385,149.25,149.19,32.76525385]
[1745362558037,32.76525385,149.25,149.2,32.76525385]
[1745362558206,32.76525385,149.26,149.2,32.76525385]
[1745362559330,0.03,149.28,149.24,32.76525385]
[1745362559531,0.03,149.28,149.25,32.76525385]
[1745362559709,0.03,149.28,149.27,32.76525385]
[1745362561935,0.03,149.28,149.2,18.64964886]
[1745362562136,0.03,149.28,149.22,32.76525385]
[1745362562338,32.76525385,149.25,149.15,10.39001681]
[1745362562527,32.76525385,149.23,149.17,32.76525385]
[1745362562722,32.76525385,149.22,149.17,32.76525385]
[1745362563321,32.76525385,149.19,149.11,229.76]
[1745362563511,32.76525385,149.16,149.08,17.98]
[1745362563713,32.76525385,149.15,149.09,32.76525385]